bitfinex/quotes_ETHUSD_20250724
["timestamp","ask_amount","ask_price","bid_price","bid_amount"]
[1753374632836,3.752,3701.6,3700.7,4.475]
[1753374633069,0.752,3701.6,3700.7,4.475]
[1753374633637,3.45360711,3701.6,3700.8,0.02702118]
[1753374633837,0.752,3701.6,3700.7,4.9297]
[1753374634139,0.752,3701.6,3700.8,4.473]
[1753374634470,2.70191619,3701.1,3700.8,4.473]
[1753374634670,2.70183174,3701.2,3700.8,4.473]
[1753374634978,2.70199392,3701.0,3700.8,4.473]
[1753374635470,2.70195771,3701.1,3700.9,4.471]
[1753374635672,0.9031,3701.5,3700.9,4.471]
[1753374635969,2.70197243,3701.0,3700.9,4.471]
[1753374636170,2.70197243,3701.0,3700.6,0.001]
[1753374636171,2.70213224,3700.8,3700.6,0.001]
[1753374636594,2.70219147,3700.7,3700.6,0.001]
[1753374636958,2.83739147,3700.7,3700.6,0.001]
[1753374639099,0.1352,3700.7,3700.6,0.001]
[1753374639309,2.83739147,3700.7,3700.6,0.001]
[1753374639515,0.1352,3700.7,3700.6,0.001]
[1753374639892,2.70182643,3701.2,3700.6,0.4557]
[1753374640090,0.1352,3700.8,3700.7,2.70219147]
[1753374640402,0.7899,3701.7,3701.0,2.70193454]
[1753374640606,0.1352,3701.2,3701.1,4.457]
[1753374640829,0.1352,3701.2,3701.1,7.15889943]
[1753374641381,0.24572759,3701.9,3701.1,7.61359943]
[1753374641582,0.1352,3701.5,3701.1,0.4547]
[1753374641783,1.693,3702.0,3700.8,0.1352]
[1753374642011,2.70184258,3701.2,3700.9,4.454]
[1753374642518,2.83697813,3701.3,3700.9,4.454]
[1753374642685,0.1352,3701.3,3700.7,0.1352]
[1753374642887,0.1352,3700.9,3700.8,4.453]
[1753374643282,0.9031,3702.2,3700.8,5.3624]
[1753374643486,0.1352,3701.2,3700.9,2.7020307]
[1753374643718,0.1352,3701.2,3700.9,0.9094]
[1753374643907,0.1352,3701.2,3701.0,2.70196024]
[1753374644109,0.1352,3701.2,3701.1,2.70189943]
[1753374644426,0.002,3701.7,3701.1,3.15659943]
[1753374644720,0.1352,3701.4,3701.0,0.4547]
[1753374644887,0.1352,3701.4,3701.0,2.70196642]
[1753374645086,0.1352,3701.4,3700.9,0.1352]
[1753374645282,0.1352,3701.4,3701.1,2.70185266]
[1753374645621,0.7502,3701.3,3701.2,4.446]
[1753374645820,4.38055343,3701.3,3701.2,4.446]
[1753374646125,0.1352,3701.3,3701.2,4.446]
[1753374646523,0.7873,3701.7,3701.2,4.446]
[1753374646709,0.1352,3701.4,3701.2,4.9108]
[1753374647991,0.1352,3701.5,3701.3,0.4648]
[1753374648191,0.002,3701.7,3701.4,0.9341]
[1753374648495,0.002,3701.7,3701.5,2.70160745]
[1753374648694,0.002,3701.7,3701.6,4.441]
[1753374648890,0.002,3701.7,3701.6,7.60733447]
[1753374649100,0.002,3701.7,3701.6,8.98143447]
[1753374649500,0.002,3701.7,3701.6,9.53143447]
[1753374649805,0.002,3701.7,3701.6,9.53043447]
[1753374650012,0.002,3701.7,3701.6,8.98043447]
[1753374650189,0.002,3701.7,3701.1,7.58]
[1753374650190,0.002,3701.7,3701.1,7.03]
[1753374650389,0.002,3701.7,3701.4,0.4648]
[1753374650623,0.002,3701.7,3701.6,2.70153447]
[1753374650798,0.002,3701.7,3701.5,0.9341]
[1753374651115,0.002,3701.7,3701.6,7.16754981]
[1753374651327,0.002,3701.7,3701.6,8.62463447]
[1753374651544,0.002,3701.7,3701.6,7.69053447]
[1753374651745,0.002,3701.7,3701.6,9.42013447]
[1753374652419,0.002,3701.7,3701.6,9.41913447]
[1753374652623,0.002,3701.7,3701.6,4.98113447]
[1753374652828,0.002,3701.7,3701.6,9.41713447]
[1753374653818,0.002,3701.7,3701.6,4.98113447]
[1753374654048,0.002,3701.7,3701.6,9.44114981]
[1753374654251,0.002,3702.5,3702.4,2.70095073]
[1753374654452,0.002,3702.5,3702.4,7.89895073]
[1753374654638,0.002,3702.5,3702.4,8.96825073]
[1753374655174,0.002,3702.5,3702.4,0.9002]
[1753374655353,0.002,3702.5,3702.4,4.429]
[1753374656055,0.002,3702.5,3702.4,4.427]
[1753374656445,0.1372,3702.5,3702.4,4.427]
[1753374657141,0.1372,3702.5,3702.0,0.9002]
[1753374657448,0.1372,3702.5,3702.1,4.425]
[1753374657449,2.70293094,3702.5,3702.1,4.425]
[1753374657650,0.1352,3702.3,3702.1,4.425]
[1753374658170,0.002,3702.5,3702.4,2.70095073]
[1753374658324,0.002,3702.5,3702.4,4.425]
[1753374658525,0.002,3702.5,3702.4,5.3591]
[1753374658736,0.002,3702.5,3702.4,4.425]
[1753374659133,0.002,3702.5,3702.4,7.12595073]
[1753374659334,0.002,3702.5,3702.4,8.82175073]
[1753374660466,0.002,3702.5,3702.4,4.419]
[1753374661455,0.002,3702.5,3702.4,4.416]
[1753374661634,0.8101,3702.3,3701.2,0.7986]
[1753374661835,0.8101,3702.1,3700.6,0.001]
[1753374662161,0.8101,3701.4,3700.7,4.424]
[1753374662688,0.4579,3701.3,3700.6,0.001]
[1753374662879,0.9286,3701.3,3700.6,0.001]
[1753374663083,2.70219147,3700.7,3700.6,0.001]
[1753374663376,0.9286,3701.3,3700.6,0.001]
[1753374663680,2.70206692,3700.9,3700.6,0.001]
[1753374663975,0.8101,3701.4,3701.0,2.70193774]
[1753374664147,0.8101,3701.4,3700.7,0.7972]
[1753374664148,2.70187367,3701.2,3700.7,0.7972]
[1753374664475,2.70204531,3701.0,3700.6,0.001]
[1753374664638,2.70204531,3701.0,3700.7,4.432]
[1753374664841,0.8101,3701.4,3700.7,4.432]
[1753374665074,0.8101,3701.4,3700.8,0.02702118]
[1753374665565,0.8101,3701.4,3700.6,0.001]
[1753374665738,2.70189748,3701.2,3700.9,4.432]
[1753374665939,4.44040977,3701.4,3700.8,4.43]
[1753374665940,2.70211272,3700.9,3700.8,4.43]
[1753374666138,3.63071272,3700.9,3700.8,4.43]
[1753374666339,0.9286,3700.9,3700.6,0.001]
[1753374666573,3.63066605,3700.9,3700.6,0.001]
[1753374666769,3.48409147,3700.7,3700.6,0.001]
[1753374667303,4.41269147,3700.7,3700.6,0.001]
[1753374667898,4.41269147,3700.7,3699.8,0.001]
[1753374667899,0.8035,3700.6,3699.8,0.001]
[1753374668101,1.7321,3700.6,3699.8,0.001]
[1753374668300,3.50627575,3699.9,3699.8,0.001]
[1753374668870,0.8035,3699.9,3699.8,0.001]
[1753374669068,3.50627575,3699.9,3699.8,0.001]
[1753374669471,0.4707,3700.4,3699.8,0.001]
[1753374670091,2.70248358,3700.3,3699.8,0.001]
[1753374670506,0.1352,3699.9,3699.8,0.001]
[1753374670711,2.83797575,3699.9,3699.8,0.001]
[1753374671126,0.1352,3699.9,3699.8,0.001]
[1753374672510,0.4707,3700.6,3699.8,0.001]
[1753374672511,0.787,3700.9,3699.8,4.4470449]
[1753374672724,2.70212298,3700.8,3700.1,2.70258836]
[1753374672886,0.9286,3701.0,3700.1,4.426]
[1753374673208,2.70247328,3700.4,3700.1,4.428]
[1753374673407,2.70247328,3700.4,3699.9,4.428]
[1753374673812,0.4579,3700.8,3699.9,4.428]
[1753374674424,0.7544,3700.7,3699.8,0.001]
[1753374674627,2.70260863,3700.2,3699.9,4.426]
[1753374674826,2.70277575,3699.9,3699.8,0.001]
[1753374675630,0.7544,3700.7,3699.8,0.001]
[1753374675631,0.466,3700.6,3699.8,0.001]
[1753374675944,0.7544,3700.7,3699.8,1.7216]
[1753374676107,3.45666273,3700.7,3699.8,1.7216]
[1753374676444,2.70253618,3700.3,3699.8,1.7216]
[1753374676644,0.7544,3700.7,3699.9,0.4353]
[1753374676852,2.7024922,3700.3,3699.9,0.4353]
[1753374677011,3.45661367,3700.7,3699.9,0.4353]
[1753374677349,3.98617191,3701.1,3699.9,0.4353]
[1753374677641,2.70226559,3700.6,3699.9,0.4353]
[1753374677840,2.70226559,3700.6,3700.0,2.70269944]
[1753374677998,2.70226559,3700.6,3700.0,4.421]
[1753374678198,1.2842,3701.1,3700.1,2.72959226]
[1753374678435,1.2842,3701.1,3700.0,4.421]
[1753374678604,2.70245731,3700.4,3700.0,4.421]
[1753374678803,2.70230297,3700.6,3700.1,4.415]
[1753374679135,2.70277575,3699.9,3699.8,0.001]
[1753374679338,2.70248358,3700.3,3699.8,0.001]
[1753374679538,2.70277575,3699.9,3699.8,0.001]
[1753374680199,2.70272109,3700.0,3699.8,0.001]
[1753374680512,2.70277575,3699.9,3699.8,0.001]
[1753374680722,3.65337575,3699.9,3699.8,0.001]
[1753374681713,3.18737575,3699.9,3699.8,0.001]
[1753374681903,3.65337575,3699.9,3699.8,0.001]
[1753374682104,4.47207575,3699.9,3699.8,1e-08]
[1753374682306,7.47207575,3699.9,3699.8,1e-08]
[1753374682500,7.60727575,3699.9,3699.8,1e-08]
[1753374683231,3.65667575,3699.9,3699.8,1e-08]
[1753374683433,0.1352,3699.9,3699.8,1e-08]
[1753374683851,2.83797575,3699.9,3699.8,1e-08]
[1753374684007,0.1352,3699.9,3699.8,1e-08]
[1753374684203,2.83797575,3699.9,3699.8,1e-08]
[1753374684550,3.78857575,3699.9,3699.8,1e-08]
[1753374684705,4.60727575,3699.9,3699.8,1e-08]
[1753374687009,4.61536935,3699.9,3699.8,1e-08]
[1753374689450,12.02036935,3699.9,3699.8,1e-08]
[1753374689614,11.55436935,3699.9,3699.8,1e-08]
[1753374689820,11.06976935,3699.9,3699.8,1e-08]
[1753374690249,12.02036935,3699.9,3699.8,1e-08]
[1753374691019,2.84606935,3699.9,3699.8,1e-08]
[1753374691218,2.83797575,3699.9,3699.8,1e-08]
[1753374693446,3.78857575,3699.9,3699.8,1e-08]
[1753374693841,3.32257575,3699.9,3699.8,1e-08]
[1753374694077,2.83797575,3699.9,3699.8,1e-08]
[1753374694443,0.1352,3699.9,3699.8,1e-08]
[1753374694975,2.83797575,3699.9,3699.8,1e-08]
[1753374695384,0.1352,3699.9,3699.8,1e-08]
[1753374695967,2.83797575,3699.9,3699.8,1e-08]
[1753374696774,3.61587575,3699.9,3699.8,1e-08]
[1753374696962,7.43127575,3699.9,3699.8,1e-08]
[1753374697346,6.48067575,3699.9,3699.8,1e-08]
[1753374697584,7.11586828,3699.9,3699.8,1e-08]
[1753374697887,7.10777575,3699.9,3699.8,1e-08]
[1753374698187,7.59237575,3699.9,3699.8,1e-08]
[1753374698362,8.05837575,3699.9,3699.8,1e-08]
[1753374698770,11.05837575,3699.9,3699.8,1e-08]
[1753374699176,10.10677575,3699.9,3699.8,1e-08]
[1753374699548,4.404,3699.9,3699.8,1e-08]
[1753374699753,7.10672847,3700.0,3699.8,1e-08]
[1753374699955,0.8202,3700.6,3699.8,0.43530001]
[1753374700176,2.70253011,3700.3,3699.8,0.93350001]
[1753374700376,7.10753011,3700.3,3699.9,0.4353]
[1753374700563,2.70217493,3700.8,3700.0,0.7776]
[1753374700882,2.70226486,3700.6,3700.1,0.9335]
[1753374701084,4.405,3700.7,3700.0,3.48030164]
[1753374701287,4.405,3700.7,3700.0,0.7776]
[1753374701489,4.405,3700.7,3699.8,1e-08]
[1753374701788,2.70277575,3699.9,3699.8,1e-08]
[1753374702380,3.65337575,3699.9,3699.8,1e-08]
[1753374702686,6.65337575,3699.9,3699.8,1e-08]
[1753374703088,11.83717575,3699.9,3699.8,1e-08]
[1753374703459,12.40614254,3699.9,3699.8,1e-08]
[1753374707099,12.54943358,3699.9,3699.8,1e-08]
[1753374707307,2.70388085,3698.4,3698.2,0.70850001]
[1753374707608,2.70393136,3698.4,3698.2,1.14500001]
[1753374707898,0.1352,3698.3,3698.2,1.14500001]
[1753374708998,0.455,3699.8,3698.3,2.70394505]
[1753374708999,0.1352,3698.7,3698.3,2.70394505]
[1753374709300,0.1352,3698.7,3698.4,0.8912]
[1753374709671,0.8265,3699.7,3698.5,3.62203288]
[1753374709874,0.1352,3698.8,3698.6,0.46353725]
[1753374710312,0.1352,3698.8,3698.7,0.4547]
[1753374710598,0.1352,3698.8,3698.7,1.2483]
[1753374710801,0.1352,3698.8,3698.7,1.6848]
[1753374710999,0.1352,3699.3,3698.7,3.59481587]
[1753374711296,0.1352,3699.3,3699.0,2.70341983]
[1753374711502,0.1352,3699.3,3699.1,2.70335944]
[1753374711726,2.70230391,3700.6,3699.3,0.7529]
[1753374711932,2.70314104,3699.4,3699.3,0.7529]
[1753374712228,2.70339635,3699.1,3698.9,0.7529]
[1753374712428,2.70333478,3699.2,3699.0,0.4365]
[1753374712594,2.70330968,3699.2,3699.0,0.4365]
[1753374712910,2.70336027,3699.1,3699.0,0.4365]
[1753374713115,2.70336027,3699.1,3698.9,0.7529]
[1753374713310,4.404,3699.5,3698.9,0.7529]
[1753374713525,2.70341586,3699.1,3698.9,1.2076]
[1753374713687,0.002,3699.8,3699.0,0.8912]
[1753374713892,2.70306798,3699.5,3699.0,0.8912]
[1753374714126,2.70315208,3699.4,3699.1,0.8912]
[1753374714297,4.406,3699.8,3699.2,0.4365]
[1753374714627,2.70316452,3699.4,3699.2,0.4365]
[1753374714926,2.70321412,3699.3,3699.2,0.4365]
[1753374715124,2.70316543,3699.4,3699.2,0.4365]
[1753374715508,2.70321412,3699.3,3699.2,0.4365]
[1753374716104,2.70316836,3699.4,3699.2,0.4365]
[1753374716517,4.406,3699.8,3699.2,0.4365]
[1753374716518,2.70321412,3699.3,3699.2,0.4365]
[1753374716731,4.406,3699.8,3698.9,0.7529]
[1753374716732,2.70343336,3699.0,3698.9,0.7529]
[1753374717389,2.70336908,3699.1,3698.9,0.7529]
[1753374717596,2.70319459,3699.4,3699.0,0.8912]
[1753374717821,0.002,3699.8,3699.1,9.73501717]
[1753374718041,2.70305769,3699.6,3699.1,9.29851717]
[1753374718199,0.002,3699.8,3699.2,0.8912]
[1753374718402,0.002,3699.8,3699.6,8.84381717]
[1753374718644,0.002,3699.8,3699.7,3.52945106]
[1753374718934,0.002,3699.8,3699.7,3.98415106]
[1753374719232,0.002,3699.8,3699.7,1.71772921]
[1753374719631,0.002,3699.8,3699.7,1.6907]
[1753374719837,0.002,3699.8,3699.7,4.39362185]
[1753374720547,0.002,3699.8,3699.7,1.6907]
[1753374720837,0.002,3699.8,3699.7,4.39362185]
[1753374721202,0.002,3699.8,3699.0,2.70339724]
[1753374721203,0.7567,3699.7,3698.3,0.7672]
[1753374721420,2.70368798,3698.7,3698.3,0.7672]
[1753374721645,2.70350644,3698.9,3698.4,0.8912]
[1753374721842,0.7567,3699.7,3698.3,0.7672]
[1753374721843,0.00809132,3699.5,3698.5,0.91823798]
[1753374722054,0.1352,3699.0,3698.6,0.4365]
[1753374722356,2.70372573,3698.6,3698.3,0.7672]
[1753374722518,2.70372573,3698.6,3698.3,1.2037]
[1753374723138,2.83885539,3698.7,3698.3,0.7672]
[1753374723356,2.83885733,3698.7,3698.4,0.8912]
[1753374723573,0.1352,3698.7,3698.5,0.91823798]
[1753374723758,0.1352,3699.2,3698.6,1.0264]
[1753374724062,0.1352,3699.3,3698.8,0.7806]
[1753374724260,0.1352,3699.3,3698.8,5.1836]
[1753374724451,2.83842555,3699.3,3698.9,0.8912]
[1753374724759,2.83842555,3699.3,3699.0,0.8912]
[1753374725057,2.83842555,3699.3,3699.1,0.8912]
[1753374725253,0.1352,3699.3,3699.1,0.8912]
[1753374725458,0.1352,3699.3,3699.2,0.4365]
[1753374725623,0.1352,3699.3,3699.2,0.8912]
[1753374725822,0.002,3699.8,3699.2,1.713]
[1753374726054,0.002,3699.8,3699.7,3.52472185]
[1753374726363,0.002,3699.8,3699.7,7.95475106]
[1753374726526,0.002,3699.8,3699.7,8.81892185]
[1753374726946,0.002,3699.8,3699.7,8.79642185]
[1753374727144,0.1352,3700.8,3700.0,0.7993]
[1753374727458,0.1352,3701.3,3700.7,3.50147194]
[1753374727669,2.83695625,3701.3,3700.8,4.8395]
[1753374727973,0.1352,3701.3,3700.9,0.8912]
[1753374728180,0.1352,3701.3,3700.9,0.4547]
[1753374728383,2.83695841,3701.3,3701.0,0.4365]
[1753374728579,0.1352,3701.3,3701.0,0.4365]
[1753374729346,0.1352,3701.3,3701.1,0.8912]
[1753374729667,0.1352,3701.3,3700.8,4.43002118]
[1753374729978,0.1352,3701.2,3700.7,5.2023]
[1753374730181,0.1352,3701.2,3700.8,0.4365]
[1753374730403,2.70163,3701.5,3700.9,0.4365]
[1753374730547,0.1352,3701.3,3700.9,0.4365]
[1753374730749,2.70153447,3701.6,3700.8,4.402]
[1753374731078,2.83724588,3700.9,3700.3,1.2751]
[1753374731263,0.1352,3700.9,3700.3,8.37958189]
[1753374731802,0.1352,3700.9,3700.3,5.6771]
[1753374731947,2.70211846,3700.8,3700.3,5.6771]
[1753374732140,2.70185675,3701.2,3700.3,5.2224]
[1753374732341,2.70185675,3701.2,3699.7,7.43870835]
[1753374732342,2.70235409,3700.5,3700.4,4.402]
[1753374732554,2.70242774,3700.4,3700.3,4.402]
[1753374732752,0.1352,3700.6,3700.3,4.402]
[1753374733455,2.70238621,3700.5,3700.3,4.402]
[1753374733645,0.1352,3700.6,3700.3,4.402]
[1753374733846,2.83747346,3700.6,3700.3,4.8385]
[1753374734205,0.1352,3700.6,3700.3,4.402]
[1753374734749,0.1352,3700.6,3700.4,0.4365]
[1753374735191,2.70168044,3701.4,3700.3,4.402]
[1753374735498,2.83733,3700.8,3700.3,4.402]
[1753374735667,0.1352,3700.8,3700.4,0.4452]
[1753374736000,2.83737082,3700.8,3700.4,0.4452]
[1753374736217,0.457,3701.5,3700.5,4.401]
[1753374736360,0.1352,3700.5,3700.0,0.9556]
[1753374736566,0.1352,3700.5,3700.1,4.401]
[1753374736764,2.83753833,3700.5,3700.0,1.4008]
[1753374737010,0.1352,3700.5,3700.2,4.4]
[1753374737174,0.1352,3700.5,3700.2,7.54775008]
[1753374737374,0.1352,3700.5,3700.2,4.8452]
[1753374737799,0.1352,3700.5,3700.0,0.9556]
[1753374738016,0.1352,3700.3,3700.1,4.4]
[1753374738293,2.83772822,3700.3,3700.0,0.8204]
[1753374738493,2.7031154,3699.5,3699.0,0.8165]
[1753374738680,2.703145,3699.4,3699.0,5.6617]
[1753374739004,0.1352,3699.4,3699.0,5.6617]
[1753374739308,2.83836909,3699.4,3699.0,0.8165]
[1753374739512,0.1352,3699.4,3699.0,0.8165]
[1753374739723,2.83834478,3699.4,3699.0,0.8165]
[1753374740014,0.1352,3699.4,3699.0,0.8165]
[1753374740218,0.1352,3699.4,3699.0,3.96512481]
[1753374740394,0.1352,3699.4,3699.0,0.8165]
[1753374740603,2.70291551,3699.8,3699.1,3.60561496]
[1753374740806,0.1352,3699.6,3699.1,1.0375]
[1753374740985,0.1352,3699.6,3699.1,0.5923]
[1753374741167,0.1352,3699.6,3699.2,0.4452]
[1753374741565,0.7786,3699.5,3698.7,2.70362794]
[1753374741841,0.1352,3699.3,3699.0,2.70339031]
[1753374742050,0.7786,3700.2,3699.2,0.7707]
[1753374742355,0.1352,3699.5,3699.3,4.4]
[1753374742636,0.1352,3699.5,3699.2,5.1707]
[1753374743158,0.4704,3699.9,3698.6,0.9023]
[1753374743312,0.1352,3699.1,3698.6,4.4]
[1753374743514,0.1352,3698.9,3698.6,4.4]
[1753374744142,0.1352,3698.9,3698.7,0.4452]
[1753374744343,0.1352,3698.9,3698.8,0.4452]
[1753374744547,0.1352,3699.0,3698.8,0.4452]
[1753374744920,0.1352,3699.0,3698.6,7.10370338]
[1753374744921,0.1352,3699.0,3698.6,4.4]
[1753374745137,0.1352,3699.0,3698.3,1.2159]
[1753374745427,2.70370365,3698.7,3698.1,0.4581]
[1753374745635,0.1352,3698.6,3698.1,0.001]
[1753374745949,2.83895259,3698.6,3698.2,4.4]
[1753374746147,2.7038073,3698.5,3698.2,4.4]
[1753374746350,0.1352,3698.6,3698.3,4.4]
[1753374746644,2.83897759,3698.6,3698.3,4.4]
[1753374746948,0.1352,3698.6,3698.3,4.4]
[1753374747148,0.1352,3698.6,3698.4,0.4452]
[1753374747447,0.1352,3699.0,3698.5,3.60609883]
[1753374747608,0.1352,3699.0,3698.6,0.4452]
[1753374747957,2.7035269,3698.9,3698.3,4.4]
[1753374748245,0.4704,3699.1,3698.1,0.001]
[1753374748450,2.70399876,3698.3,3698.2,4.4]
[1753374748677,0.1352,3698.4,3698.2,4.4]
[1753374748962,2.70401817,3698.2,3698.1,0.001]
[1753374750373,3.63741817,3698.2,3698.1,0.001]
[1753374751230,8.03741817,3698.2,3698.1,0.001]
[1753374751819,3.63741817,3698.2,3698.1,0.001]
[1753374752155,8.03741817,3698.2,3698.1,0.001]
[1753374753088,11.03741817,3698.2,3698.1,1e-08]
[1753374753271,11.86741817,3698.2,3698.1,1e-08]
[1753374756765,0.7871,3697.9,3696.1,0.04]
[1753374757072,2.70539041,3696.4,3696.1,0.04]
[1753374757252,2.7054813,3696.2,3696.1,0.04]
[1753374757918,2.70539111,3696.4,3696.1,0.04]
[1753374757919,0.8264,3696.6,3696.1,0.04]
[1753374758114,2.70519952,3696.6,3696.1,0.4852]
[1753374758357,7.10519952,3696.6,3696.2,0.4452]
[1753374758563,4.4,3696.6,3696.2,0.4452]
[1753374758853,0.1352,3696.3,3696.2,0.4452]
[1753374759028,0.1352,3696.3,3696.1,0.04]
[1753374759431,2.7054813,3696.2,3696.1,0.04]
[1753374759655,3.5335813,3696.2,3696.1,0.04]
[1753374760470,4.0039813,3696.2,3696.1,0.04]
[1753374760654,8.8679813,3696.2,3696.1,0.04]
[1753374761058,11.8679813,3696.2,3696.1,0.04]
[1753374761355,7.941681,3696.2,3696.1,0.04]
[1753374761556,3.5335813,3696.2,3696.1,0.04]
[1753374761740,7.9335813,3696.2,3696.1,0.04]
[1753374762164,8.8669813,3696.2,3696.1,0.04]
[1753374762470,11.8669813,3696.2,3696.1,0.04]
[1753374762971,11.8669813,3696.2,3696.1,1e-08]
[1753374763139,11.875081,3696.2,3696.1,1e-08]
[1753374763336,2.70570091,3695.9,3695.8,1e-08]
[1753374763567,3.53315295,3694.6,3694.1,0.04]
[1753374763773,2.70694602,3694.2,3694.1,0.04]
[1753374763975,0.8265,3694.6,3694.1,0.04]
[1753374764178,2.70694602,3694.2,3694.1,0.04]
[1753374764344,7.10794602,3694.2,3694.1,0.04]
[1753374764539,7.10794602,3694.2,3693.0,0.4571]
[1753374764540,2.70760181,3693.4,3691.8,0.4452]
[1753374764878,2.70767897,3693.2,3692.0,0.4452]
[1753374765062,5.70767897,3693.2,3691.7,3.15396216]
[1753374765236,5.70767897,3693.2,3691.7,0.4452]
[1753374765435,4.401,3693.2,3692.4,9.67753823]
[1753374765636,4.401,3693.2,3692.6,0.4677]
[1753374765637,4.4,3693.2,3692.6,0.4677]
[1753374765857,2.70738574,3693.6,3692.6,0.4677]
[1753374766057,0.7816,3694.3,3693.1,0.9922]
[1753374766271,0.0081037,3694.1,3693.6,2.70738574]
[1753374766474,0.7816,3694.0,3692.6,2.70811894]
[1753374766768,0.7816,3694.0,3692.7,0.02708045]
[1753374766970,2.70716586,3693.9,3692.5,0.7935]
[1753374767180,0.7816,3694.0,3692.6,0.02708118]
[1753374767336,0.7816,3694.0,3692.6,2.70811894]
[1753374767532,0.7816,3694.0,3692.8,2.70797227]
[1753374767737,0.7816,3694.0,3693.0,2.70777207]
[1753374767956,2.70729698,3693.8,3692.8,2.70797227]
[1753374768175,3.48870123,3694.0,3692.5,0.7935]
[1753374768176,3.0,3693.9,3692.5,0.7935]
[1753374768377,0.9201,3693.7,3692.0,0.7943]
[1753374768577,2.70801984,3692.8,3692.0,0.7943]
[1753374768742,2.70745904,3693.5,3692.0,0.7943]
[1753374769079,2.70790012,3692.9,3692.0,0.7943]
[1753374769477,2.70784624,3693.0,3692.0,3.50285314]
[1753374769678,4.695,3693.4,3692.2,0.49478412]
[1753374769986,0.4694,3693.7,3692.2,0.49478412]
[1753374770279,0.4507,3693.9,3692.2,0.49478412]
[1753374770455,0.4507,3693.9,3693.0,0.8221]
[1753374770656,2.70696258,3694.2,3693.0,3.99759752]
[1753374770856,0.0081037,3694.2,3693.1,0.97927752]
[1753374771161,0.0081037,3694.2,3693.4,2.70747449]
[1753374771468,0.0081037,3694.2,3693.3,2.73466217]
[1753374771670,2.70753235,3693.4,3692.0,0.9522]
[1753374771846,3.0,3692.7,3690.9,0.7756]
[1753374772053,3.0,3691.9,3690.0,0.01]
[1753374772250,4.696,3691.8,3690.2,0.0270988]
[1753374772547,2.70877915,3691.7,3690.2,0.0270988]
[1753374772747,5.1654,3691.8,3690.2,0.0270988]
[1753374773284,0.00810685,3691.7,3690.3,0.02709806]
[1753374773482,2.70950782,3690.8,3690.1,0.8156]
[1753374773782,2.70885253,3691.6,3690.1,0.8156]
[1753374773783,2.70937918,3690.9,3690.1,0.8156]
[1753374773979,0.1352,3690.7,3690.2,0.1352]
[1753374774352,2.70984926,3690.3,3690.1,0.8156]
[1753374774553,2.8449443,3690.4,3690.1,0.04]
[1753374774755,0.1352,3690.4,3690.1,0.04]
[1753374775387,2.84508022,3690.2,3690.1,0.04]
[1753374775575,0.1352,3690.2,3690.1,0.04]
[1753374776862,0.1352,3690.3,3690.1,2.74995365]
[1753374777066,0.1352,3690.3,3690.1,0.04]
[1753374777270,0.752,3691.5,3690.1,0.04]
[1753374777590,0.1352,3690.4,3690.1,0.04]
[1753374778092,0.1352,3690.6,3690.2,0.4677]
[1753374778252,0.1352,3690.6,3690.1,0.04]
[1753374778449,0.1352,3690.3,3690.1,0.04]
[1753374779422,0.4694,3692.0,3690.2,1.7577988]
[1753374779593,0.4507,3691.9,3690.2,0.7785]
[1753374779758,2.70965181,3690.6,3690.1,0.04]
[1753374779956,0.4694,3691.1,3690.2,2.70988022]
[1753374780190,0.4694,3691.6,3690.6,2.70952955]
[1753374780375,0.4694,3691.6,3690.4,0.02709733]
[1753374780696,1.24,3691.8,3690.4,0.02709733]
[1753374780859,2.70878464,3691.7,3690.8,2.70937976]
[1753374781195,2.70878464,3691.7,3690.1,1.04]
[1753374781196,2.70965288,3690.6,3690.1,1.04]
[1753374781380,2.70951267,3690.8,3690.1,1.04]
[1753374781568,0.4507,3691.1,3690.1,1.04]
[1753374781752,0.4507,3691.7,3690.2,0.9522]
[1753374781957,2.70886069,3691.6,3690.3,2.70980679]
[1753374782176,2.70920576,3691.2,3690.3,2.70980679]
[1753374782380,2.70909516,3691.3,3690.4,2.70972213]
[1753374782579,2.70914272,3691.3,3690.4,2.70968698]
[1753374782895,2.70885253,3691.6,3690.2,3.66205368]
[1753374783068,0.4507,3691.7,3690.6,2.70952903]
[1753374783278,2.70905591,3691.4,3690.4,8.18620192]
[1753374783593,2.70879809,3691.7,3690.5,0.49479659]
[1753374783792,0.4694,3691.9,3690.4,5.4765]
[1753374784132,2.70944276,3690.8,3690.2,4.685]
[1753374784424,0.4507,3691.0,3690.1,1.04]
[1753374784566,0.7587,3690.9,3690.1,1.04]
[1753374784771,2.70979836,3690.4,3690.1,1.04]
[1753374785289,0.4694,3690.8,3690.1,1.04]
[1753374785490,2.70974929,3690.4,3690.1,1.04]
[1753374785801,2.70964306,3690.6,3690.2,1.0]
[1753374785969,0.7587,3690.9,3690.2,1.0]
[1753374785970,2.70952379,3690.7,3690.2,1.0]
[1753374786166,0.7587,3690.9,3690.2,1.0]
[1753374786371,0.7587,3690.9,3689.3,0.9532]
[1753374786372,0.8196,3690.7,3689.3,0.001]
[1753374786692,0.4507,3690.8,3689.4,5.6502]
[1753374786999,0.4507,3690.9,3689.5,0.02710394]
[1753374787200,0.4694,3690.7,3689.5,4.703]
[1753374787368,2.70988579,3690.2,3689.5,4.702]
[1753374787570,2.71032347,3689.6,3689.3,0.799]
[1753374787770,0.9201,3690.3,3689.3,0.799]
[1753374787969,2.71046782,3689.4,3689.3,0.001]
[1753374788716,2.71046782,3689.4,3689.1,0.04]
[1753374788717,3.63056782,3689.4,3689.1,1e-08]
[1753374788881,2.71061476,3689.2,3689.1,1e-08]
[1753374789409,3.50600268,3688.4,3688.3,0.3533434]